bitfinex-derivatives/quotes_SOLF0:USTF0_20240815
["timestamp","ask_amount","ask_price","bid_price","bid_amount"]
[1723711281056,0.03211408,142.64,142.62,0.05360786]
[1723711284362,3.53731408,142.64,142.62,0.05360786]
[1723711284561,0.03211408,142.64,142.62,0.05360786]
[1723711284962,3.5053,142.63,142.62,0.05360786]
[1723711285667,30.4553,142.63,142.62,0.05360786]
[1723711285866,34.9553,142.63,142.62,0.05360786]
[1723711290066,8.0053,142.63,142.62,0.05360786]
[1723711290572,4.5,142.63,142.62,0.05360786]
[1723711290766,0.03211408,142.64,142.62,0.05360786]
[1723711291267,0.03211408,142.64,142.62,3.55900786]
[1723711292370,0.03211408,142.64,142.63,3.5053]
[1723711295967,0.03211408,142.64,142.62,0.05360786]
[1723711296371,0.03211408,142.64,142.62,3.55920786]
[1723711297070,0.03211408,142.64,142.62,0.05360786]
[1723711297272,7.09756023,142.63,142.62,0.05360786]
[1723711297473,11.59756023,142.63,142.62,0.05360786]
[1723711297678,8.0053,142.63,142.62,0.05360786]
[1723711298579,4.5,142.63,142.62,0.05360786]
[1723711298779,4.53211408,142.64,142.62,0.05360786]
[1723711299170,8.03741408,142.64,142.62,0.05360786]
[1723711300577,4.53211408,142.64,142.62,3.55900786]
[1723711300968,3.5053,142.63,142.62,0.05360786]
[1723711304081,30.36971409,142.63,142.56,3.5069]
[1723711304379,26.95,142.61,142.56,3.5069]
[1723711304582,4.5,142.6,142.52,26.95]
[1723711304782,26.95,142.59,142.5,3.9049]
[1723711304978,3.5072,142.56,142.5,3.9049]
[1723711305185,3.55896095,142.56,142.54,0.0449638]
[1723711305374,8.05896095,142.56,142.54,0.0449638]
[1723711306884,4.55176095,142.56,142.54,3.5524638]
[1723711307181,0.05176095,142.56,142.54,0.0449638]
[1723711307386,0.05176095,142.56,142.55,3.5073]
[1723711307782,4.5,142.62,142.56,26.95]
[1723711308083,4.5,142.62,142.6,3.5059]
[1723711308478,4.5,142.62,142.61,3.5058]
[1723711308686,4.5,142.62,142.56,26.95]
[1723711308892,8.0057,142.62,142.6,0.05233898]
[1723711309187,0.03396099,142.63,142.6,0.05233898]
[1723711309587,3.53946099,142.63,142.6,0.05233898]
[1723711309982,0.03396099,142.63,142.6,3.55843898]
[1723711310883,3.53926099,142.63,142.6,3.55843898]
[1723711311085,0.03396099,142.63,142.6,3.55843898]
[1723711311686,0.03396099,142.63,142.61,3.5058]
[1723711312787,3.5057,142.62,142.6,0.05233898]
[1723711312982,3.52344205,142.63,142.6,0.05233898]
[1723711313188,26.98396099,142.63,142.6,0.05233898]
[1723711313577,3.5057,142.62,142.6,0.05233898]
[1723711313983,30.48936099,142.63,142.6,0.05233898]
[1723711314286,30.48936099,142.63,142.6,3.55823898]
[1723711314287,26.98396099,142.63,142.6,3.55823898]
[1723711314683,34.01470643,142.63,142.6,3.55823898]
[1723711315286,34.01470643,142.63,142.6,0.05233898]
[1723711318990,3.5056,142.62,142.6,0.05233898]
[1723711320994,7.02744131,142.63,142.6,0.05233898]
[1723711321293,3.53936099,142.63,142.6,3.55823898]
[1723711321594,0.03396099,142.63,142.6,3.55823898]
[1723711322187,0.03396099,142.63,142.6,0.05233898]
[1723711323989,0.03396099,142.63,142.62,3.5056]
[1723711324198,0.03396099,142.63,142.6,0.05233898]
[1723711325094,0.03396099,142.63,142.62,3.5056]
[1723711326991,3.47353974,142.71,142.6,27.00233898]
[1723711327190,3.47353974,142.71,142.6,26.95]
[1723711327191,4.52,142.69,142.6,26.95]
[1723711327387,31.47,142.69,142.6,26.95]
[1723711328006,34.93620389,142.69,142.6,26.95]
[1723711328208,3.5045,142.67,142.63,3.5052]
[1723711328405,34.93620389,142.69,142.63,0.04891398]
[1723711328603,26.95,142.67,142.63,0.04891398]
[1723711330003,26.95,142.65,142.63,0.04891398]
[1723711330209,31.47,142.65,142.63,0.04891398]
[1723711331004,34.975,142.65,142.63,0.04891398]
[1723711331205,4.52,142.65,142.63,0.04891398]
[1723711332105,4.52,142.65,142.64,3.5051]
[1723711332608,3.5045,142.67,142.64,3.5051]
[1723711333014,3.5045,142.67,142.65,3.5048]
[1723711333216,8.0243,142.68,142.65,3.5048]
[1723711333610,3.5044,142.67,142.65,3.5048]
[1723711334514,8.0242,142.68,142.65,3.5048]
[1723711335816,4.52,142.68,142.63,0.04891398]
[1723711336314,3.5047,142.66,142.63,3.55401398]
[1723711337311,3.5045,142.67,142.64,3.5051]
[1723711337708,4.52,142.68,142.65,3.5046]
[1723711337911,4.52,142.68,142.63,0.04891398]
[1723711340311,4.52,142.68,142.65,3.5047]
[1723711340818,4.52,142.68,142.66,3.5044]
[1723711342917,8.0241,142.68,142.65,3.5047]
[1723711343221,4.52,142.68,142.65,3.5047]
[1723711343915,4.52,142.68,142.66,3.5046]
[1723711344313,4.52,142.68,142.63,0.04891398]
[1723711344517,4.52,142.68,142.64,3.5049]
[1723711344717,4.52,142.68,142.63,0.04891398]
[1723711345311,3.5047,142.66,142.63,0.04891398]
[1723711345915,3.5047,142.66,142.63,3.55411398]
[1723711346921,3.5044,142.67,142.64,3.505]
[1723711347223,4.52,142.68,142.63,0.04891398]
[1723711348532,4.52,142.68,142.66,3.5045]
[1723711349724,8.0241,142.68,142.66,3.5045]
[1723711349920,4.52,142.68,142.66,3.5045]
[1723711351823,8.0241,142.68,142.66,3.5045]
[1723711352020,4.52,142.68,142.66,3.5045]
[1723711353429,8.0243,142.68,142.65,3.5047]
[1723711354018,8.0243,142.68,142.63,0.04891398]
[1723711354019,8.0243,142.68,142.66,3.5046]
[1723711354430,4.52,142.68,142.63,0.04891398]
[1723711355823,8.0242,142.68,142.65,3.5047]
[1723711356526,4.52,142.68,142.66,3.5046]
[1723711357125,8.0243,142.68,142.65,3.5047]
[1723711360428,4.52,142.68,142.66,3.5046]
[1723711363536,8.0241,142.68,142.65,3.5047]
[1723711365133,3.5044,142.67,142.64,3.505]
[1723711365336,2.9342,142.75,142.63,0.04891398]
[1723711365635,3.5024,142.75,142.64,4.5]
[1723711365834,10.77,142.74,142.69,0.04533107]
[1723711366238,3.9832,142.77,142.7,10.77]
[1723711366537,4.5,142.76,142.71,10.77]
[1723711366738,4.5,142.76,142.73,3.5027]
[1723711366944,3.9832,142.77,142.73,3.5027]
[1723711367241,4.5,142.76,142.74,3.5025]
[1723711367539,4.5,142.76,142.74,3.55262062]
[1723711369138,4.5,142.76,142.74,0.05012062]
[1723711370131,3.9832,142.77,142.74,0.05012062]
[1723711370132,3.9832,142.77,142.75,3.5022]
[1723711370336,4.5,142.76,142.75,3.5022]
[1723711372336,1.2834,142.77,142.76,3.5021]
[1723711372537,5.7834,142.77,142.76,3.5021]
[1723711373439,4.5,142.77,142.76,3.5021]
[1723711374243,4.5,142.77,142.74,0.05012062]
[1723711375346,4.5,142.77,142.76,3.5021]
[1723711375839,4.5,142.77,142.74,0.05012062]
[1723711376039,4.5,142.77,142.75,3.5022]
[1723711376341,4.5,142.77,142.74,0.05012062]
[1723711377744,4.5,142.77,142.76,3.5021]
[1723711378345,1.2376,142.82,142.74,0.05012062]
[1723711378346,4.72,142.78,142.74,26.96012062]
[1723711378641,4.72,142.79,142.74,26.96012062]
[1723711379543,4.72,142.79,142.77,3.5018]
[1723711379842,4.72,142.79,142.74,0.05012062]
[1723711380346,8.2214,142.79,142.76,3.502]
[1723711380548,4.72,142.79,142.74,0.05012062]
[1723711381449,3.5018,142.78,142.75,3.5023]
[1723711381842,4.72,142.79,142.74,0.05012062]
[1723711382749,4.72,142.79,142.77,3.5018]
[1723711383749,4.72,142.79,142.74,26.96012062]
[1723711384348,4.72,142.79,142.77,3.5017]
[1723711384748,8.2212,142.8,142.77,3.5017]
[1723711385350,4.72,142.8,142.78,3.5016]
[1723711386152,8.2212,142.8,142.78,3.5016]
[1723711386849,4.72,142.8,142.78,3.5016]
[1723711387043,4.72,142.8,142.77,3.55169252]
[1723711387244,8.2213,142.8,142.77,0.04989252]
[1723711387540,4.72,142.8,142.77,0.04989252]
[1723711388250,31.63,142.8,142.77,0.04989252]
[1723711388441,26.91,142.78,142.68,26.91]
[1723711388640,2.6041,142.77,142.68,26.91]
[1723711388849,3.5022,142.76,142.73,3.5027]
[1723711389151,4.72,142.75,142.73,3.5027]
[1723711389553,4.76484179,142.75,142.73,0.0533253]
[1723711390250,8.26734179,142.75,142.73,0.0533253]
[1723711392345,4.72,142.74,142.73,0.0533253]
[1723711392540,0.04484179,142.75,142.73,3.5562253]
[1723711392745,4.72,142.74,142.73,3.5562253]
[1723711395952,0.04484179,142.75,142.73,3.5562253]
[1723711396150,0.04484179,142.75,142.73,0.0533253]
[1723711396350,0.04484179,142.75,142.74,3.5026]
[1723711400056,0.04484179,142.75,142.73,0.0533253]
[1723711401657,0.04484179,142.75,142.74,3.5026]
[1723711410165,1.3072,142.81,142.74,3.5026]
[1723711410166,1.3072,142.81,142.78,3.5016]
[1723711410370,1.269,142.83,142.76,26.91]
[1723711410570,5.889,142.83,142.76,26.91]
[1723711411061,5.889,142.83,142.8,3.5012]
[1723711411468,5.889,142.83,142.8,3.55096011]
[1723711411666,3.5008,142.82,142.8,0.04976011]
[1723711411872,5.889,142.83,142.8,0.04976011]
[1723711413062,9.3896,142.83,142.8,3.55076011]
[1723711413262,5.889,142.83,142.8,0.04976011]
[1723711413664,5.889,142.83,142.81,3.5009]
[1723711413973,5.889,142.83,142.8,0.04976011]
[1723711414165,5.889,142.83,142.81,3.5008]
[1723711414366,5.889,142.83,142.8,0.04976011]
[1723711414772,3.5009,142.81,142.8,0.04976011]
[1723711416265,3.5008,142.82,142.8,0.04976011]
[1723711417363,3.5009,142.81,142.8,0.04976011]
[1723711419272,16.649,142.83,142.8,0.04976011]
[1723711419970,3.5009,142.81,142.8,0.04976011]
[1723711420563,3.5008,142.82,142.8,0.04976011]
[1723711420969,16.629,142.83,142.8,0.04976011]
[1723711421571,3.5009,142.81,142.8,0.04976011]
[1723711423477,3.5008,142.82,142.8,0.04976011]
[1723711424475,3.5009,142.81,142.8,0.04976011]
[1723711425378,3.5015,142.79,142.5,94.33683884]
[1723711425677,4.6,142.79,142.74,10.76]
[1723711426680,4.6,142.79,142.76,3.502]
[1723711426681,0.0506781,142.78,142.76,3.502]
[1723711426871,0.0506781,142.78,142.75,0.05372116]
[1723711427274,0.0506781,142.78,142.76,3.502]
[1723711427581,0.0506781,142.78,142.75,0.05372116]
[1723711428073,3.5523781,142.78,142.75,3.55602116]
[1723711428986,3.5019,142.77,142.75,0.05372116]
[1723711429176,10.8106781,142.78,142.75,0.05372116]
[1723711429574,3.5021,142.77,142.75,0.05372116]
[1723711430178,3.5524781,142.78,142.75,3.55612116]
[1723711430379,0.0506781,142.78,142.75,3.55612116]
[1723711431479,0.0506781,142.78,142.76,3.5021]
[1723711432687,0.0506781,142.78,142.75,3.55602116]
[1723711432688,3.5523781,142.78,142.75,3.55602116]
[1723711432881,0.0506781,142.78,142.75,0.05372116]
[1723711433074,0.0506781,142.78,142.76,10.76]
[1723711433277,0.0506781,142.78,142.77,3.5019]
[1723711437081,0.0506781,142.78,142.77,14.2619]
[1723711440779,4.54,142.83,142.8,3.5011]
[1723711441480,4.54,142.83,142.81,3.5008]
[1723711441780,4.54,142.83,142.81,0.04632978]
[1723711442580,8.0406,142.83,142.81,0.04632978]
[1723711443385,4.54,142.83,142.81,0.04632978]
[1723711443990,8.0406,142.83,142.81,0.04632978]
[1723711444583,3.5007,142.82,142.81,0.04632978]
[1723711444883,4.54,142.83,142.81,0.04632978]
[1723711446292,8.0405,142.83,142.81,0.04632978]
[1723711447091,8.0405,142.83,142.81,3.54722978]
[1723711447498,4.54,142.83,142.81,3.54722978]
[1723711447890,4.54,142.83,142.82,3.5007]
[1723711448785,3.5002,142.84,142.82,3.5007]
[1723711449000,10.76,142.85,142.82,3.5007]
[1723711449189,14.2601,142.85,142.82,3.5007]
[1723711449395,10.76,142.88,142.82,10.76]
[1723711449597,15.3,142.88,142.82,10.76]
[1723711449792,3.4998,142.86,142.83,3.5003]
[1723711450091,3.4998,142.86,142.84,0.04928771]
[1723711450694,4.54,142.88,142.84,0.04928771]
[1723711450892,13.3592,142.9,142.84,0.04928771]
[1723711451095,3.4994,142.88,142.85,3.4998]
[1723711451291,4.54,142.89,142.84,0.04928771]
[1723711451700,3.4993,142.88,142.85,3.4999]
[1723711454288,3.4993,142.88,142.84,0.04928771]
[1723711455100,3.4993,142.88,142.85,3.4998]
[1723711455304,8.039,142.89,142.84,10.80928771]
[1723711455701,8.039,142.89,142.86,3.4996]
[1723711458201,3.4992,142.88,142.86,3.4996]
[1723711458808,4.54,142.89,142.85,3.4999]
[1723711459309,15.3,142.89,142.84,3.54938771]
[1723711459497,10.76,142.87,142.84,3.54938771]
[1723711460909,3.4998,142.86,142.84,3.54938771]
[1723711461302,3.5,142.85,142.84,0.04928771]
[1723711461596,10.76,142.87,142.84,0.04928771]
[1723711462407,3.4999,142.86,142.84,0.04928771]
[1723711464211,3.4996,142.87,142.84,3.54938771]
[1723711467817,3.4993,142.88,142.85,3.4999]
[1723711468010,3.4993,142.88,142.84,0.04928771]
[1723711468914,10.76,142.88,142.84,0.04928771]
[1723711469511,3.4998,142.86,142.84,0.04928771]
[1723711469904,10.76,142.86,142.84,0.04928771]
[1723711470104,11.56,142.89,142.84,0.04928771]
[1723711470305,7.02,142.89,142.85,10.76]
[1723711470710,7.02,142.89,142.87,3.4993]
[1723711475617,7.02,142.89,142.86,3.4996]
[1723711475618,10.519,142.89,142.86,3.4996]
[1723711476622,3.4994,142.88,142.85,3.4999]
[1723711477112,3.4994,142.88,142.86,3.4997]
[1723711477717,10.5191,142.89,142.86,3.4997]
[1723711478312,15.3,142.88,142.84,0.04928771]
[1723711478519,16.6257,142.88,142.84,0.04928771]
[1723711478917,3.5,142.85,142.84,0.04928771]
[1723711479420,3.4998,142.86,142.84,0.04928771]
[1723711482921,3.4998,142.86,142.84,3.54948771]
[1723711483122,3.4998,142.86,142.84,0.04928771]
[1723711483825,3.5,142.85,142.84,0.04928771]
[1723711487525,7.06662698,142.85,142.84,0.04928771]
[1723711487730,3.5005,142.83,142.8,3.5011]
[1723711487929,8.0405,142.83,142.8,3.5011]
[1723711488820,8.09357525,142.83,142.81,3.5009]
[1723711489020,8.09357525,142.83,142.8,0.04660405]
[1723711489524,8.09357525,142.83,142.8,3.54760405]
[1723711489925,4.59307525,142.83,142.8,3.54760405]
[1723711490527,8.09367525,142.83,142.8,3.54760405]
[1723711491427,3.5008,142.82,142.8,0.04660405]
[1723711493729,3.5009,142.81,142.8,0.04660405]
[1723711494036,5.82477525,142.83,142.8,0.04660405]
[1723711494629,3.5009,142.82,142.8,0.04660405]
[1723711495237,0.05307525,142.83,142.81,10.76]
[1723711495724,0.05307525,142.83,142.82,3.5007]
[1723711506040,0.05307525,142.83,142.82,14.2607]
[1723711506537,0.05307525,142.83,142.81,3.5008]
[1723711508039,0.05307525,142.83,142.82,3.5007]
[1723711510139,0.05307525,142.83,142.81,3.5008]
[1723711513046,3.55357525,142.83,142.8,3.54770405]
[1723711513447,0.05307525,142.83,142.81,3.5009]
[1723711514044,0.05307525,142.83,142.82,3.5007]
[1723711514444,0.05307525,142.83,142.8,10.80660405]
[1723711514949,0.05307525,142.83,142.81,3.5008]
[1723711515243,0.05307525,142.83,142.8,10.80660405]
[1723711515447,0.05307525,142.83,142.81,3.5008]
[1723711516842,0.05307525,142.83,142.81,3.5009]
[1723711517047,0.05307525,142.83,142.8,10.80660405]
[1723711517250,0.05307525,142.83,142.82,10.76]
[1723711517849,0.05307525,142.83,142.82,14.2607]
[1723711521057,7.9995,142.87,142.84,3.5]
[1723711521249,7.9995,142.87,142.84,14.26]
[1723711522055,7.9995,142.87,142.84,14.30692442]
[1723711525554,7.9995,142.87,142.85,3.4999]
[1723711526055,4.5,142.87,142.85,3.4999]
[1723711526557,3.4992,142.89,142.86,3.4997]
[1723711527654,3.4993,142.88,142.86,3.4997]
[1723711528161,3.4993,142.88,142.85,3.4998]
[1723711528956,9.2855,142.9,142.84,10.80692442]
[1723711529162,5.7866,142.9,142.86,10.76]
[1723711529363,5.7866,142.9,142.84,0.04692442]
[1723711529563,3.499,142.89,142.86,3.4995]
[1723711530157,3.499,142.89,142.87,3.4994]
[1723711530356,9.2854,142.9,142.87,3.4994]
[1723711530863,7.9988,142.9,142.87,3.4994]
[1723711531063,7.9988,142.9,142.87,3.54478949]
[1723711532159,6.1361,142.91,142.88,3.4992]
[1723711532463,10.6361,142.91,142.88,3.4992]
[1723711534367,10.6361,142.91,142.88,3.4991]
[1723711534567,10.6361,142.91,142.87,0.04538949]
[1723711534568,7.1375,142.91,142.87,0.04538949]
[1723711534961,10.6361,142.91,142.88,3.4991]
[1723711539766,3.4988,142.9,142.88,3.4991]
[1723711540065,3.4988,142.9,142.87,3.54478949]
[1723711540264,3.4988,142.9,142.87,0.04538949]
[1723711540566,3.4988,142.9,142.87,3.54478949]
[1723711540959,3.4988,142.9,142.87,0.04538949]
[1723711541866,7.9986,142.91,142.88,3.4991]
[1723711542266,7.9986,142.91,142.88,10.76]
[1723711542762,7.9986,142.91,142.87,0.04538949]
[1723711542763,4.5,142.91,142.9,10.76]
[1723711542963,7.02,142.93,142.9,10.76]
[1723711543163,10.518,142.93,142.9,14.2586]
[1723711544056,1.3365,142.95,142.9,14.2586]
[1723711544057,1.3365,142.95,142.91,10.76]
[1723711544365,0.02,142.96,142.94,10.76]
[1723711544569,0.02,142.96,142.94,14.2577]
[1723711545161,0.02,142.96,142.94,14.3107468]
[1723711545454,0.02,142.96,142.94,0.0530468]
[1723711547270,0.02,142.96,142.94,10.8130468]
[1723711547867,0.02,142.96,142.95,3.4975]
[1723711548171,0.02,142.96,142.95,14.2575]
[1723711551567,0.02,142.96,142.94,3.5507468]
[1723711551767,0.02,142.96,142.94,0.0530468]
[1723711551972,0.02,142.96,142.94,3.5506468]
[1723711553672,0.02,142.96,142.95,3.4975]
[1723711553873,0.02,142.96,142.94,0.0530468]
[1723711554371,0.02,142.96,142.95,3.4975]
[1723711556768,0.02,142.96,142.94,3.5506468]
[1723711557377,3.5173,142.96,142.94,3.5506468]
[1723711557677,3.5173,142.96,142.94,0.0530468]
[1723711557678,0.02,142.96,142.94,0.0530468]
[1723711558479,3.4975,142.95,142.94,0.0530468]
[1723711558676,10.76,142.93,142.85,65.80235452]
[1723711558881,18.69081013,142.93,142.87,10.76]
[1723711559181,3.4983,142.92,142.89,3.4989]
[1723711559976,3.55007311,142.92,142.89,3.54977152]
[1723711561172,10.81177311,142.92,142.89,0.05087152]
[1723711561575,3.4987,142.9,142.89,0.05087152]
[1723711562882,13.0555,142.91,142.89,0.05087152]
[1723711563178,9.5569,142.91,142.89,0.05087152]
[1723711563578,3.4987,142.9,142.89,0.05087152]
[1723711563978,10.76,142.9,142.67,14.0168]
[1723711564180,5.7792,142.89,142.82,10.76]
[1723711564379,16.5392,142.89,142.84,3.5002]
[1723711564580,16.5392,142.89,142.82,10.76]
[1723711564782,10.76,142.87,142.82,10.76]
[1723711564987,10.76,142.87,142.82,3.5005]
[1723711565186,3.5001,142.85,142.83,0.04550808]
[1723711565579,8.0001,142.85,142.83,0.04550808]
[1723711566281,10.76,142.84,142.73,1.3079]
[1723711566475,10.76,142.84,142.75,10.76]
[1723711566476,10.76,142.83,142.75,10.76]
[1723711566684,3.5012,142.8,142.75,10.76]
[1723711567087,4.5,142.79,142.75,10.76]
[1723711567588,4.5,142.79,142.77,10.76]
[1723711567786,0.04476309,142.78,142.76,0.04966975]
[1723711567981,0.04476309,142.78,142.77,10.76]
[1723711568290,5.7792,142.83,142.8,3.501]
[1723711568486,5.7792,142.83,142.8,14.261]
[1723711569186,4.5,142.83,142.81,3.5009]
[1723711569490,0.04638534,142.83,142.8,10.8109035]
[1723711570190,0.04638534,142.83,142.82,14.2607]
[1723711573088,0.04638534,142.83,142.81,3.5008]
[1723711574881,0.04638534,142.83,142.82,3.5007]
[1723711575087,0.04638534,142.83,142.82,14.2607]
[1723711579192,0.04638534,142.83,142.82,3.5007]
[1723711579388,0.04638534,142.83,142.82,14.2607]
[1723711580485,4.5,142.88,142.82,10.76]
[1723711580684,1.259,142.91,142.87,10.76]
[1723711581084,4.7576,142.91,142.87,10.76]
[1723711581285,1.2626,142.94,142.88,10.76]
[1723711581485,7.015,142.94,142.9,10.76]
[1723711581687,7.015,142.94,142.9,14.2585]
[1723711581688,10.5129,142.94,142.9,14.2585]
[1723711581896,0.04743715,142.92,142.9,14.3087062]
[1723711582288,0.04743715,142.92,142.91,14.2585]
[1723711583390,0.02,142.96,142.94,3.4977]
[1723711583592,0.02,142.96,142.94,14.2577]
[1723711584692,0.02,142.96,142.94,10.8088266]
[1723711586200,0.02,142.96,142.94,0.0488266]
[1723711586401,10.76,142.95,142.94,0.0488266]
[1723711586996,4.52,142.96,142.94,0.0488266]
[1723711587195,15.28,142.96,142.94,0.0488266]
[1723711588603,4.52,142.96,142.94,0.0488266]
[1723711588794,3.4975,142.95,142.94,0.0488266]
[1723711589802,8.0173,142.96,142.94,0.0488266]
[1723711590607,4.52,142.96,142.94,3.5465266]
[1723711590808,0.02,142.96,142.94,10.8088266]
[1723711591002,0.02,142.96,142.95,3.4975]
[1723711591396,0.02,142.96,142.94,10.8088266]
[1723711592301,0.02,142.96,142.94,14.3064266]
[1723711595713,0.02,142.96,142.95,3.4975]
[1723711596910,0.02,142.96,142.94,0.0488266]
[1723711597712,0.02,142.96,142.94,3.5465266]
[1723711597906,0.02,142.96,142.94,0.0488266]
[1723711598411,0.02,142.96,142.94,3.5464266]
[1723711598802,0.02,142.96,142.94,0.0488266]
[1723711599007,3.5174,142.96,142.94,0.0488266]
[1723711600110,3.4975,142.95,142.94,0.0488266]
[1723711600709,3.4982,142.92,142.87,66.55271293]
[1723711601011,10.76,142.92,142.87,66.55271293]
[1723711601209,11.989,142.94,142.87,77.31271293]
[1723711601915,3.5463937,142.92,142.89,3.5453341]
[1723711602119,0.0479937,142.92,142.89,0.0465341]
[1723711602410,3.4987,142.9,142.89,0.0465341]
[1723711603508,3.4987,142.9,142.85,10.76]
[1723711603509,3.4992,142.89,142.85,3.4998]
[1723711603706,3.4992,142.89,142.83,10.76]
[1723711603906,10.76,142.9,142.83,10.76]
[1723711604712,3.4994,142.88,142.84,3.5]
[1723711605028,0.0517653,142.88,142.85,0.04488651]
[1723711606116,3.5511653,142.88,142.85,0.04488651]
[1723711606823,0.0517653,142.88,142.85,10.80488651]
[1723711607317,0.0517653,142.88,142.87,3.4995]
[1723711609225,4.5,142.94,142.91,3.4983]
[1723711609611,7.9978,142.94,142.91,3.4983]
[1723711610515,8.04705029,142.94,142.91,3.54839015]
[1723711610917,4.54925029,142.94,142.92,3.4982]
[1723711611122,4.54925029,142.94,142.91,0.05009015]
[1723711611313,4.54925029,142.94,142.91,26.94009015]
[1723711611624,0.04925029,142.94,142.93,3.498]
[1723711612324,0.04925029,142.94,142.92,3.4981]
[1723711615121,0.04925029,142.94,142.93,3.498]
[1723711617530,0.04925029,142.94,142.92,3.4981]
[1723711618030,0.04925029,142.94,142.91,26.94009015]
[1723711618725,0.04925029,142.94,142.93,3.498]
[1723711619118,0.04925029,142.94,142.91,0.05009015]
[1723711619320,3.54705029,142.94,142.92,3.4981]
[1723711619525,0.04925029,142.94,142.92,3.4981]
[1723711620731,0.04925029,142.94,142.91,0.05009015]
[1723711621129,4.5,142.93,142.91,0.05009015]
[1723711621525,7.9981,142.93,142.91,0.05009015]
[1723711622033,3.4982,142.92,142.91,0.05009015]
[1723711623231,4.5,142.93,142.91,0.05009015]
[1723711624228,4.5,142.93,142.91,3.54849015]
[1723711624836,7.9981,142.93,142.91,3.54849015]
[1723711625536,3.4981,142.93,142.91,3.54849015]
[1723711626139,3.54715029,142.94,142.91,3.54849015]
[1723711627335,0.04925029,142.94,142.91,0.05009015]
[1723711627841,0.04925029,142.94,142.93,3.498]
[1723711629641,0.04925029,142.94,142.92,3.4981]
[1723711629942,0.04925029,142.94,142.91,0.05009015]
[1723711630141,3.54715029,142.94,142.91,3.54839015]
[1723711630334,0.04925029,142.94,142.91,0.05009015]
[1723711630735,3.4981,142.93,142.91,0.05009015]
[1723711634040,4.54925029,142.94,142.91,3.54859015]
[1723711634341,4.54925029,142.94,142.92,10.76]
[1723711634538,0.04925029,142.94,142.92,10.76]
[1723711634741,0.04925029,142.94,142.93,3.498]
[1723711635046,0.04925029,142.94,142.92,10.76]
[1723711635243,3.4981,142.93,142.91,0.05009015]
[1723711635637,0.04925029,142.94,142.91,0.05009015]
[1723711635840,3.498,142.93,142.91,0.05009015]
[1723711636539,3.54715029,142.94,142.91,0.05009015]
[1723711637135,3.54715029,142.94,142.91,3.54849015]
[1723711637742,3.498,142.93,142.91,3.54849015]
[1723711639244,10.80925029,142.94,142.91,0.05009015]
[1723711639942,3.498,142.93,142.91,0.05009015]
[1723711640145,10.80925029,142.94,142.91,0.05009015]
[1723711640443,3.4982,142.93,142.91,0.05009015]
[1723711641841,7.9982,142.93,142.91,0.05009015]
[1723711642237,7.9982,142.93,142.91,3.54859015]
[1723711642543,4.5,142.93,142.91,0.05009015]
[1723711643047,4.5,142.93,142.92,3.4982]
[1723711643748,4.5,142.93,142.91,0.05009015]
[1723711643947,14.32438068,142.92,142.91,0.05009015]
[1723711644141,17.82258068,142.92,142.91,0.05009015]
[1723711644443,17.82258068,142.92,142.86,10.76]
[1723711644444,14.32438068,142.92,142.86,10.76]
[1723711644649,3.499,142.9,142.87,3.4993]
[1723711644846,14.32438068,142.92,142.87,3.4993]
[1723711645043,14.32438068,142.92,142.86,10.76]
[1723711645350,3.4991,142.89,142.86,3.4996]
[1723711645543,3.4991,142.89,142.88,0.05019487]
[1723711645943,3.4996,142.87,142.84,10.76]
[1723711646147,3.4996,142.87,142.82,10.76]
[1723711646946,3.4996,142.87,142.84,3.5001]
[1723711647149,0.05359223,142.86,142.84,3.5001]
[1723711647647,0.05359223,142.86,142.84,10.76]
[1723711647847,0.05359223,142.86,142.85,10.76]
[1723711648453,0.05359223,142.86,142.85,14.26]
[1723711650351,4.5,142.91,142.88,3.4991]
[1723711650558,4.5,142.91,142.88,14.2591]